[Event "*** Titled Tuesday Blitz"]
[Site "Chess.com"]
[Date "2020.05.05"]
[Round "10"]
[White "BikingBrian"]
[Black "mshuaau0"]
[Result "0-1"]
[WhiteElo "2257"]
[BlackElo "2137"]
[TimeControl "180+1"]
[EndTime "12:00:30 PDT"]
[Termination "mshuaau0 won by resignation"]

1. d4 {[%clk 0:03:00.9]} 1... d5 {[%clk 0:02:59.2]} 2. Bf4 {[%clk 0:03:00.4]}
2... e6 {[%clk 0:02:58.5]} 3. e3 {[%clk 0:03:00.7]} 3... Bd6 {[%clk 0:02:58.3]}
4. Bg3 {[%clk 0:03:00.8]} 4... Nf6 {[%clk 0:02:55.8]} 5. Nf3 {[%clk 0:03:01]}
5... c5 {[%clk 0:02:55.3]} 6. c3 {[%clk 0:03:00.4]} 6... O-O {[%clk 0:02:54.6]}
7. Nbd2 {[%clk 0:03:00.3]} 7... b6 {[%clk 0:02:54.8]} 8. Ne5 {[%clk 0:02:54]}
8... Qc7 {[%clk 0:02:53.4]} 9. Bd3 {[%clk 0:02:50.5]} 9... Ba6 {[%clk
0:02:52.8]} 10. Bxa6 {[%clk 0:02:48.2]} 10... Nxa6 {[%clk 0:02:52.2]} 11. O-O
{[%clk 0:02:47.9]} 11... Nb8 {[%clk 0:02:51.3]} 12. f4 {[%clk 0:02:30.7]} 12...
Nc6 {[%clk 0:02:49.3]} 13. Bh4 {[%clk 0:02:30.7]} 13... Ne4 {[%clk 0:02:48.7]}
14. Nxe4 {[%clk 0:02:28.1]} 14... dxe4 {[%clk 0:02:49.6]} 15. Qc2 {[%clk
0:02:17.4]} 15... cxd4 {[%clk 0:02:38.2]} 16. Qxe4 {[%clk 0:02:10.1]} 16... Bxe5
{[%clk 0:02:24.5]} 17. fxe5 {[%clk 0:02:08.2]} 17... dxe3 {[%clk 0:02:21.2]} 18.
Qxe3 {[%clk 0:02:02.2]} 18... Qxe5 {[%clk 0:02:19.7]} 19. Qf3 {[%clk 0:01:58.6]}
19... Rac8 {[%clk 0:02:07.1]} 20. Rae1 {[%clk 0:01:58.3]} 20... Qc5+ {[%clk
0:02:05.5]} 21. Kh1 {[%clk 0:01:46.5]} 21... Ne5 {[%clk 0:02:02.7]} 22. Qe4
{[%clk 0:01:30.4]} 22... Ng6 {[%clk 0:01:59.8]} 23. Bf2 {[%clk 0:01:27.8]} 23...
Qc4 {[%clk 0:01:59]} 24. Qf3 {[%clk 0:01:18.2]} 24... Qxa2 {[%clk 0:01:53.8]}
25. h4 {[%clk 0:01:18.2]} 25... Qd5 {[%clk 0:01:50.4]} 26. Qxd5 {[%clk
0:01:08.1]} 26... exd5 {[%clk 0:01:50.3]} 27. h5 {[%clk 0:01:07.4]} 27... Nf4
{[%clk 0:01:49.2]} 28. Bxb6 {[%clk 0:01:02.4]} 28... Nxg2 {[%clk 0:01:29.8]} 29.
Kxg2 {[%clk 0:01:01.1]} 29... axb6 {[%clk 0:01:29.2]} 30. Rf5 {[%clk 0:00:59.5]}
30... Rfd8 {[%clk 0:01:25.3]} 31. Rfe5 {[%clk 0:00:54.6]} 31... Kf8 {[%clk
0:01:18.1]} 32. Rd1 {[%clk 0:00:53.7]} 32... Rc5 {[%clk 0:01:15.7]} 33. Kf3
{[%clk 0:00:52.5]} 33... f6 {[%clk 0:01:15.3]} 34. Re6 {[%clk 0:00:51.9]} 34...
Rb5 {[%clk 0:01:13.7]} 35. Rd2 {[%clk 0:00:52.2]} 35... Kf7 {[%clk 0:01:12.7]}
36. Rc6 {[%clk 0:00:52.2]} 36... d4 {[%clk 0:01:10.3]} 37. Rc7+ {[%clk
0:00:50.4]} 37... Kg8 {[%clk 0:01:10]} 38. cxd4 {[%clk 0:00:45.7]} 38... Rxh5
{[%clk 0:01:08.9]} 39. Rb7 {[%clk 0:00:44.9]} 39... b5 {[%clk 0:01:06.4]} 40.
Ke4 {[%clk 0:00:44.1]} 40... Rh4+ {[%clk 0:01:05.5]} 41. Ke3 {[%clk 0:00:43.5]}
41... Rh3+ {[%clk 0:01:04.8]} 42. Ke4 {[%clk 0:00:43.8]} 42... Re8+ {[%clk
0:01:04.3]} 43. Kd5 {[%clk 0:00:42.8]} 43... Rh5+ {[%clk 0:01:03.4]} 44. Kd6
{[%clk 0:00:41.2]} 44... Kf8 {[%clk 0:00:55]} 45. d5 {[%clk 0:00:41.2]} 45...
Rhe5 {[%clk 0:00:50.5]} 46. Kc6 {[%clk 0:00:38.9]} 46... h5 {[%clk 0:00:45.1]}
47. d6 {[%clk 0:00:38.5]} 47... R5e6 {[%clk 0:00:33.8]} 48. Kxb5 {[%clk
0:00:36]} 48... Rd8 {[%clk 0:00:33.6]} 49. d7 {[%clk 0:00:34.9]} 49... Ke7
{[%clk 0:00:32.8]} 50. Rc7 {[%clk 0:00:21]} 50... Rd6 {[%clk 0:00:32.2]} 51.
Re2+ {[%clk 0:00:21.3]} 51... Kf7 {[%clk 0:00:30.2]} 52. Rc5 {[%clk 0:00:20.1]}
52... h4 {[%clk 0:00:27.7]} 53. Rh5 {[%clk 0:00:19.7]} 53... R8xd7 {[%clk
0:00:25.9]} 54. Rxh4 {[%clk 0:00:19.9]} 54... Rd5+ {[%clk 0:00:24.5]} 55. Kc6
{[%clk 0:00:20.3]} 55... R7d6+ {[%clk 0:00:24.1]} 56. Kc7 {[%clk 0:00:20.4]}
56... Ra6 {[%clk 0:00:22.2]} 57. Rhe4 {[%clk 0:00:19.5]} 57... Ra7+ {[%clk
0:00:19.5]} 58. Kb6 {[%clk 0:00:19.7]} 58... Rdd7 {[%clk 0:00:20.4]} 59. Rc4
{[%clk 0:00:18.1]} 59... Rdb7+ {[%clk 0:00:20.2]} 60. Kc5 {[%clk 0:00:17.5]}
60... Rc7+ {[%clk 0:00:19.9]} 61. Kd4 {[%clk 0:00:17.8]} 61... Rxc4+ {[%clk
0:00:20.8]} 62. Kxc4 {[%clk 0:00:18.3]} 62... g5 {[%clk 0:00:20.3]} 63. b4
{[%clk 0:00:18.6]} 63... Kg6 {[%clk 0:00:20.6]} 64. Kd5 {[%clk 0:00:18.9]} 64...
g4 {[%clk 0:00:20.9]} 65. Ke6 {[%clk 0:00:18.5]} 65... Kg5 {[%clk 0:00:20.9]}
66. Rc2 {[%clk 0:00:17.9]} 66... Rb7 {[%clk 0:00:20.8]} 67. Rc4 {[%clk
0:00:17.4]} 67... f5 {[%clk 0:00:20.6]} 68. Rc5 {[%clk 0:00:17.1]} 68... Rb6+
{[%clk 0:00:21]} 69. Ke5 {[%clk 0:00:16.7]} 69... Rxb4 {[%clk 0:00:21]} 70. Ke6
{[%clk 0:00:17.1]} 70... Re4+ {[%clk 0:00:20.9]} 71. Kf7 {[%clk 0:00:16.3]}
71... g3 {[%clk 0:00:21.3]} 72. Rc6 {[%clk 0:00:17.2]} 72... Kf4 {[%clk
0:00:20.4]} 73. Rg6 {[%clk 0:00:18.1]} 73... Re2 {[%clk 0:00:18.6]} 74. Kf6
{[%clk 0:00:18.3]} 74... g2 {[%clk 0:00:18.9]} 75. Rg5 {[%clk 0:00:18.8]} 75...
Ke4 {[%clk 0:00:18.7]} 76. Rxf5 {[%clk 0:00:19.7]} 76... g1=Q {[%clk 0:00:18.2]}
77. Re5+ {[%clk 0:00:20.6]} 77... Kd3 {[%clk 0:00:18]} 78. Rd5+ {[%clk
0:00:20.4]} 78... Qd4+ {[%clk 0:00:17.2]} 79. Rxd4+ {[%clk 0:00:20.5]} 79...
Kxd4 {[%clk 0:00:18.1]} 0-1

[Event "*** Titled Tuesday Blitz"]
[Site "Chess.com"]
[Date "2020.05.05"]
[Round "10"]
[White "queen_iryna"]
[Black "erlesfar"]
[Result "1-0"]
[WhiteElo "2305"]
[BlackElo "2423"]
[TimeControl "180+1"]
[EndTime "12:00:33 PDT"]
[Termination "queen_iryna won by checkmate"]

1. d4 {[%clk 0:03:00.9]} 1... Nf6 {[%clk 0:02:52.8]} 2. Bg5 {[%clk 0:02:58.8]}
2... Ne4 {[%clk 0:02:51.9]} 3. Bf4 {[%clk 0:02:58.9]} 3... c5 {[%clk 0:02:46.8]}
4. f3 {[%clk 0:02:57.6]} 4... Nf6 {[%clk 0:02:44.9]} 5. dxc5 {[%clk 0:02:57.4]}
5... e5 {[%clk 0:02:38.6]} 6. Bxe5 {[%clk 0:02:48.8]} 6... Bxc5 {[%clk
0:02:37.7]} 7. Nc3 {[%clk 0:02:44.5]} 7... Qb6 {[%clk 0:02:34.1]} 8. Nh3 {[%clk
0:02:09.8]} 8... O-O {[%clk 0:02:25.9]} 9. Bxf6 {[%clk 0:01:59.6]} 9... Qxf6
{[%clk 0:02:23.8]} 10. Qd2 {[%clk 0:01:59.6]} 10... Nc6 {[%clk 0:02:11.6]} 11.
O-O-O {[%clk 0:01:45.3]} 11... d6 {[%clk 0:02:07.2]} 12. Nf4 {[%clk 0:01:39.8]}
12... Be6 {[%clk 0:01:52.7]} 13. Nfd5 {[%clk 0:01:29.2]} 13... Qd8 {[%clk
0:01:43.4]} 14. e4 {[%clk 0:01:24.6]} 14... a6 {[%clk 0:01:32.1]} 15. Kb1 {[%clk
0:01:21.9]} 15... b5 {[%clk 0:01:31.1]} 16. Nf4 {[%clk 0:01:21.3]} 16... Bc4
{[%clk 0:01:28.1]} 17. Bxc4 {[%clk 0:01:16.6]} 17... bxc4 {[%clk 0:01:27.2]} 18.
Na4 {[%clk 0:01:11.1]} 18... Qc7 {[%clk 0:00:58.7]} 19. Nxc5 {[%clk 0:01:09]}
19... dxc5 {[%clk 0:00:57.8]} 20. Nd5 {[%clk 0:01:09]} 20... Qb7 {[%clk
0:00:57.3]} 21. c3 {[%clk 0:00:58.7]} 21... Ne5 {[%clk 0:00:56.2]} 22. Qe3
{[%clk 0:00:44]} 22... Rfb8 {[%clk 0:00:48.3]} 23. Rd2 {[%clk 0:00:20]} 23...
Nd3 {[%clk 0:00:35.8]} 24. b3 {[%clk 0:00:20.2]} 24... a5 {[%clk 0:00:33.1]} 25.
Rxd3 {[%clk 0:00:19.2]} 25... cxd3 {[%clk 0:00:31.8]} 26. Qxc5 {[%clk
0:00:18.9]} 26... a4 {[%clk 0:00:27.2]} 27. b4 {[%clk 0:00:18.5]} 27... a3
{[%clk 0:00:26.6]} 28. Qd4 {[%clk 0:00:18.5]} 28... Qb5 {[%clk 0:00:19.8]} 29.
Rd1 {[%clk 0:00:17.3]} 29... Qa4 {[%clk 0:00:19.5]} 30. Qxd3 {[%clk 0:00:16.8]}
30... Kh8 {[%clk 0:00:19.3]} 31. Qc2 {[%clk 0:00:16.8]} 31... Qb5 {[%clk
0:00:18.7]} 32. Qb3 {[%clk 0:00:16.6]} 32... Qe2 {[%clk 0:00:17.8]} 33. Qc2
{[%clk 0:00:16.7]} 33... Qb5 {[%clk 0:00:17.2]} 34. Ka1 {[%clk 0:00:15.6]} 34...
Qc4 {[%clk 0:00:16.7]} 35. Kb1 {[%clk 0:00:15.6]} 35... Rc8 {[%clk 0:00:15.9]}
36. Qd3 {[%clk 0:00:15.3]} 36... Qxd3+ {[%clk 0:00:13.5]} 37. Rxd3 {[%clk
0:00:14.9]} 37... Rab8 {[%clk 0:00:13.9]} 38. Kc2 {[%clk 0:00:14]} 38... f5
{[%clk 0:00:13.4]} 39. Kb3 {[%clk 0:00:14.1]} 39... fxe4 {[%clk 0:00:13.2]} 40.
fxe4 {[%clk 0:00:15]} 40... Re8 {[%clk 0:00:13.3]} 41. Re3 {[%clk 0:00:13.9]}
41... Re5 {[%clk 0:00:12.8]} 42. c4 {[%clk 0:00:13.6]} 42... Rbe8 {[%clk
0:00:12.4]} 43. Kc3 {[%clk 0:00:13.4]} 43... Rxe4 {[%clk 0:00:12.4]} 44. Rxe4
{[%clk 0:00:13.4]} 44... Rxe4 {[%clk 0:00:12.9]} 45. Kd3 {[%clk 0:00:13.3]}
45... Re1 {[%clk 0:00:11.5]} 46. b5 {[%clk 0:00:13.3]} 46... Rb1 {[%clk
0:00:10.9]} 47. b6 {[%clk 0:00:11.7]} 47... Kg8 {[%clk 0:00:10.6]} 48. Kc3
{[%clk 0:00:10.3]} 48... Kf7 {[%clk 0:00:10.3]} 49. Nb4 {[%clk 0:00:09.7]} 49...
Rc1+ {[%clk 0:00:09.5]} 50. Kb3 {[%clk 0:00:09.5]} 50... Rb1+ {[%clk 0:00:09.5]}
51. Kxa3 {[%clk 0:00:09.7]} 51... Re1 {[%clk 0:00:09.7]} 52. b7 {[%clk
0:00:09.7]} 52... Re8 {[%clk 0:00:09.3]} 53. Nc6 {[%clk 0:00:10.2]} 53... Re3+
{[%clk 0:00:09.5]} 54. Kb4 {[%clk 0:00:09.5]} 54... Re1 {[%clk 0:00:09.2]} 55.
b8=Q {[%clk 0:00:09.4]} 55... Rb1+ {[%clk 0:00:10.1]} 56. Kc5 {[%clk 0:00:09.3]}
56... Rxb8 {[%clk 0:00:09.9]} 57. Nxb8 {[%clk 0:00:10.2]} 57... Ke6 {[%clk
0:00:09.9]} 58. a4 {[%clk 0:00:11.1]} 58... Ke5 {[%clk 0:00:10.7]} 59. a5 {[%clk
0:00:11.4]} 59... Ke4 {[%clk 0:00:11.6]} 60. a6 {[%clk 0:00:11.7]} 60... Ke3
{[%clk 0:00:12.5]} 61. a7 {[%clk 0:00:11.9]} 61... Kf2 {[%clk 0:00:13.4]} 62.
a8=Q {[%clk 0:00:11.7]} 62... Kg1 {[%clk 0:00:14.3]} 63. Qf3 {[%clk 0:00:10.7]}
63... Kh1 {[%clk 0:00:15.2]} 64. Kd4 {[%clk 0:00:10.4]} 64... g5 {[%clk
0:00:16.1]} 65. c5 {[%clk 0:00:09.9]} 65... h5 {[%clk 0:00:17]} 66. Qxh5 {[%clk
0:00:09.3]} 66... g4 {[%clk 0:00:17.9]} 67. c6 {[%clk 0:00:09.4]} 67... g3
{[%clk 0:00:17]} 68. hxg3+ {[%clk 0:00:08.9]} 68... Kg1 {[%clk 0:00:17.2]} 69.
c7 {[%clk 0:00:09.2]} 69... Kf2 {[%clk 0:00:17.2]} 70. c8=Q {[%clk 0:00:08.9]}
70... Kg1 {[%clk 0:00:17.4]} 71. Qc1+ {[%clk 0:00:08.5]} 71... Kf2 {[%clk
0:00:17.4]} 72. Qf3# {[%clk 0:00:08.6]} 1-0

[Event "*** Titled Tuesday Blitz"]
[Site "Chess.com"]
[Date "2020.05.05"]
[Round "10"]
[White "Aradej"]
[Black "ShahMatKanal"]
[Result "0-1"]
[WhiteElo "2533"]
[BlackElo "2428"]
[TimeControl "180+1"]
[EndTime "12:00:39 PDT"]
[Termination "ShahMatKanal won by resignation"]

1. e4 {[%clk 0:03:00.9]} 1... d5 {[%clk 0:02:57.8]} 2. exd5 {[%clk 0:03:00.4]}
2... Qxd5 {[%clk 0:02:58.7]} 3. Nc3 {[%clk 0:02:59.7]} 3... Qd6 {[%clk
0:02:58.8]} 4. d4 {[%clk 0:02:59.6]} 4... Nf6 {[%clk 0:02:58.3]} 5. Nf3 {[%clk
0:03:00]} 5... c6 {[%clk 0:02:56.7]} 6. Ne5 {[%clk 0:02:59.9]} 6... Nbd7 {[%clk
0:02:56.8]} 7. Nc4 {[%clk 0:02:58.2]} 7... Qc7 {[%clk 0:02:57.2]} 8. Qf3 {[%clk
0:02:58.5]} 8... Nb6 {[%clk 0:02:57.5]} 9. Bf4 {[%clk 0:02:58.4]} 9... Qd7
{[%clk 0:02:57.9]} 10. Ne5 {[%clk 0:02:57.4]} 10... Qd8 {[%clk 0:02:53.8]} 11.
Rd1 {[%clk 0:02:55.9]} 11... e6 {[%clk 0:02:36.7]} 12. Bd3 {[%clk 0:02:53.7]}
12... Be7 {[%clk 0:02:28.5]} 13. O-O {[%clk 0:02:53.5]} 13... O-O {[%clk
0:02:28.6]} 14. Rfe1 {[%clk 0:02:49.5]} 14... Nbd5 {[%clk 0:02:26.7]} 15. Nxd5
{[%clk 0:02:48.3]} 15... cxd5 {[%clk 0:02:16.2]} 16. Qh3 {[%clk 0:02:43.2]}
16... g6 {[%clk 0:01:44.9]} 17. Re3 {[%clk 0:02:39.8]} 17... Nh5 {[%clk
0:01:34.6]} 18. Bh6 {[%clk 0:02:37.7]} 18... Bg5 {[%clk 0:01:22]} 19. Bxf8
{[%clk 0:02:29.5]} 19... Bxe3 {[%clk 0:01:21.7]} 20. fxe3 {[%clk 0:02:16]} 20...
Qxf8 {[%clk 0:01:21.2]} 21. g4 {[%clk 0:02:12.9]} 21... Ng7 {[%clk 0:00:50.5]}
22. Rf1 {[%clk 0:02:09.8]} 22... f5 {[%clk 0:00:48.9]} 23. c3 {[%clk 0:02:06]}
23... Qe7 {[%clk 0:00:39.9]} 24. Qg3 {[%clk 0:02:04.6]} 24... Bd7 {[%clk
0:00:38.6]} 25. h4 {[%clk 0:02:02.9]} 25... Rf8 {[%clk 0:00:37.3]} 26. a3 {[%clk
0:01:59.8]} 26... Bc6 {[%clk 0:00:30.5]} 27. h5 {[%clk 0:01:56.1]} 27... Qg5
{[%clk 0:00:26.2]} 28. hxg6 {[%clk 0:01:53.8]} 28... hxg6 {[%clk 0:00:26.7]} 29.
Kg2 {[%clk 0:01:41.6]} 29... Be8 {[%clk 0:00:20]} 30. gxf5 {[%clk 0:01:33.2]}
30... Qxg3+ {[%clk 0:00:19.7]} 31. Kxg3 {[%clk 0:01:33.2]} 31... Nxf5+ {[%clk
0:00:19.2]} 32. Bxf5 {[%clk 0:01:32.3]} 32... exf5 {[%clk 0:00:16.8]} 33. Kf4
{[%clk 0:01:31.8]} 33... Kg7 {[%clk 0:00:16.7]} 34. Rh1 {[%clk 0:01:27.5]} 34...
Bb5 {[%clk 0:00:10.7]} 35. Kg5 {[%clk 0:01:24.1]} 35... Be8 {[%clk 0:00:07.6]}
36. Rh6 {[%clk 0:01:21.2]} 36... f4 {[%clk 0:00:07.9]} 37. Nxg6 {[%clk
0:01:08.2]} 37... Rf6 {[%clk 0:00:03.6]} 38. Nh4 {[%clk 0:00:17.9]} 38... Rxh6
{[%clk 0:00:02.5]} 39. Nf5+ {[%clk 0:00:18]} 39... Kh7 {[%clk 0:00:02.6]} 40.
Nxh6 {[%clk 0:00:17]} 40... fxe3 {[%clk 0:00:02.8]} 41. Ng4 {[%clk 0:00:14.9]}
41... e2 {[%clk 0:00:02.7]} 42. Nf6+ {[%clk 0:00:15.4]} 42... Kh8 {[%clk
0:00:02.8]} 43. Nxe8 {[%clk 0:00:15.9]} 43... e1=Q {[%clk 0:00:03.7]} 44. Nf6
{[%clk 0:00:16.4]} 44... Qd2+ {[%clk 0:00:03.7]} 45. Kf5 {[%clk 0:00:15.5]}
45... Qxb2 {[%clk 0:00:04.6]} 46. Nxd5 {[%clk 0:00:15.5]} 46... Qxa3 {[%clk
0:00:04.7]} 47. Ke6 {[%clk 0:00:15.4]} 47... a5 {[%clk 0:00:04.5]} 48. Ne7
{[%clk 0:00:14.6]} 48... Qb3+ {[%clk 0:00:04.2]} 49. d5 {[%clk 0:00:14.8]} 49...
a4 {[%clk 0:00:05.1]} 50. Kf6 {[%clk 0:00:12.8]} 50... Qb6+ {[%clk 0:00:03.9]}
51. Ke5 {[%clk 0:00:11.8]} 51... Qe3+ {[%clk 0:00:03.9]} 52. Kf6 {[%clk
0:00:11.7]} 52... Qxc3+ {[%clk 0:00:03.9]} 53. Ke6 {[%clk 0:00:11.3]} 53... Qe3+
{[%clk 0:00:04.1]} 54. Kf6 {[%clk 0:00:11.2]} 54... a3 {[%clk 0:00:04.1]} 55. d6
{[%clk 0:00:11.3]} 55... Qd4+ {[%clk 0:00:04.2]} 56. Ke6 {[%clk 0:00:10.9]}
56... a2 {[%clk 0:00:04.6]} 57. Ng6+ {[%clk 0:00:07.6]} 57... Kg7 {[%clk
0:00:03.8]} 58. Ne7 {[%clk 0:00:07.5]} 58... Qxd6+ {[%clk 0:00:02.4]} 59. Kxd6
{[%clk 0:00:06.9]} 59... a1=Q {[%clk 0:00:03.3]} 60. Nd5 {[%clk 0:00:06.8]}
60... Qa3+ {[%clk 0:00:03.3]} 61. Kc7 {[%clk 0:00:06.3]} 61... Kf7 {[%clk
0:00:04.2]} 62. Nb6 {[%clk 0:00:05.5]} 62... Qf3 {[%clk 0:00:03.7]} 63. Nd7
{[%clk 0:00:04]} 63... Ke7 {[%clk 0:00:03.8]} 64. Nb6 {[%clk 0:00:02.4]} 64...
Qc6+ {[%clk 0:00:03.4]} 0-1

[Event "*** Titled Tuesday Blitz"]
[Site "Chess.com"]
[Date "2020.05.05"]
[Round "10"]
[White "Firegrizzly"]
[Black "Harsha_Bharathakoti"]
[Result "0-1"]
[WhiteElo "2672"]
[BlackElo "2827"]
[TimeControl "180+1"]
[EndTime "12:00:41 PDT"]
[Termination "Harsha_Bharathakoti won by resignation"]

1. e4 {[%clk 0:02:58.2]} 1... c5 {[%clk 0:02:58.9]} 2. Nf3 {[%clk 0:02:58]} 2...
Nc6 {[%clk 0:02:59.6]} 3. Bb5 {[%clk 0:02:57.4]} 3... g6 {[%clk 0:03:00.2]} 4.
Bxc6 {[%clk 0:02:56.1]} 4... bxc6 {[%clk 0:03:00.1]} 5. d4 {[%clk 0:02:55.7]}
5... cxd4 {[%clk 0:03:00]} 6. Qxd4 {[%clk 0:02:55.4]} 6... f6 {[%clk 0:03:00.6]}
7. O-O {[%clk 0:02:53.9]} 7... d6 {[%clk 0:03:00.6]} 8. c4 {[%clk 0:02:53.8]}
8... c5 {[%clk 0:03:00.7]} 9. Qd3 {[%clk 0:02:52]} 9... Bg7 {[%clk 0:03:00.6]}
10. Nc3 {[%clk 0:02:50.6]} 10... Nh6 {[%clk 0:03:00.9]} 11. h3 {[%clk
0:02:48.9]} 11... Nf7 {[%clk 0:03:00.5]} 12. b3 {[%clk 0:02:46.8]} 12... O-O
{[%clk 0:03:00.4]} 13. Bb2 {[%clk 0:02:46.6]} 13... g5 {[%clk 0:02:24.1]} 14.
Nh2 {[%clk 0:02:44]} 14... Ne5 {[%clk 0:02:23.8]} 15. Qd2 {[%clk 0:02:42.3]}
15... Bb7 {[%clk 0:02:09.1]} 16. Rad1 {[%clk 0:02:41.7]} 16... Qe8 {[%clk
0:02:08.2]} 17. f3 {[%clk 0:02:37.5]} 17... Rd8 {[%clk 0:02:04.1]} 18. Nd5
{[%clk 0:02:36.7]} 18... e6 {[%clk 0:02:00.6]} 19. Ne3 {[%clk 0:02:35.6]} 19...
Qe7 {[%clk 0:01:57.5]} 20. Nhg4 {[%clk 0:02:34]} 20... Ng6 {[%clk 0:01:54.4]}
21. Qa5 {[%clk 0:02:27.3]} 21... a6 {[%clk 0:01:53.2]} 22. Bc3 {[%clk
0:02:24.4]} 22... h5 {[%clk 0:01:52.8]} 23. Nf2 {[%clk 0:02:22.7]} 23... Nf4
{[%clk 0:01:49]} 24. Rfe1 {[%clk 0:02:21.3]} 24... Rd7 {[%clk 0:01:38.4]} 25. a3
{[%clk 0:02:16.2]} 25... Qd8 {[%clk 0:01:37.5]} 26. Qxd8 {[%clk 0:02:13.3]}
26... Rfxd8 {[%clk 0:01:38.4]} 27. b4 {[%clk 0:02:12.8]} 27... Kf7 {[%clk
0:01:32.7]} 28. Rd2 {[%clk 0:02:08.1]} 28... cxb4 {[%clk 0:01:23.5]} 29. axb4
{[%clk 0:02:06.8]} 29... Bf8 {[%clk 0:01:14.4]} 30. Red1 {[%clk 0:02:05]} 30...
Rc8 {[%clk 0:01:12.1]} 31. Kh2 {[%clk 0:01:59.5]} 31... Rdc7 {[%clk 0:01:11.3]}
32. Ba1 {[%clk 0:01:53.1]} 32... Be7 {[%clk 0:01:11.4]} 33. Nd3 {[%clk
0:01:44.9]} 33... Ng6 {[%clk 0:01:10.1]} 34. g3 {[%clk 0:01:41.5]} 34... g4
{[%clk 0:00:52.9]} 35. hxg4 {[%clk 0:01:39.2]} 35... hxg4 {[%clk 0:00:53.4]} 36.
Nxg4 {[%clk 0:01:35.3]} 36... Rxc4 {[%clk 0:00:53.9]} 37. Kg2 {[%clk 0:01:25.6]}
37... Rh8 {[%clk 0:00:48.4]} 38. Ngf2 {[%clk 0:01:17.4]} 38... Rg8 {[%clk
0:00:43.6]} 39. Kf1 {[%clk 0:01:14.6]} 39... Bc6 {[%clk 0:00:44]} 40. Rc1 {[%clk
0:01:05.2]} 40... Rxc1+ {[%clk 0:00:41.6]} 41. Nxc1 {[%clk 0:01:04.4]} 41... Ne5
{[%clk 0:00:42.4]} 42. Kg2 {[%clk 0:01:02.8]} 42... f5 {[%clk 0:00:36.5]} 43.
Bxe5 {[%clk 0:00:56.4]} 43... dxe5 {[%clk 0:00:37.4]} 44. Rc2 {[%clk 0:00:55.5]}
44... Bb5 {[%clk 0:00:33.7]} 45. Rc7 {[%clk 0:00:55.3]} 45... Kf6 {[%clk
0:00:32.9]} 46. Nb3 {[%clk 0:00:53.5]} 46... Bxb4 {[%clk 0:00:32.4]} 47. Rb7
{[%clk 0:00:47.7]} 47... Rc8 {[%clk 0:00:25]} 48. Rh7 {[%clk 0:00:37.1]} 48...
Rc3 {[%clk 0:00:24.6]} 49. Rh6+ {[%clk 0:00:35.3]} 49... Kg7 {[%clk 0:00:23.6]}
50. Rxe6 {[%clk 0:00:35.1]} 50... Rxb3 {[%clk 0:00:24.3]} 51. exf5 {[%clk
0:00:32.3]} 51... Be2 {[%clk 0:00:20.1]} 52. Rxe5 {[%clk 0:00:29.6]} 52... Bxf3+
{[%clk 0:00:20.7]} 53. Kh3 {[%clk 0:00:29.1]} 53... Kf6 {[%clk 0:00:21.2]} 54.
Re6+ {[%clk 0:00:21.2]} 54... Kxf5 {[%clk 0:00:21.7]} 55. Rxa6 {[%clk
0:00:21.3]} 55... Bd5 {[%clk 0:00:13.8]} 56. Ng4 {[%clk 0:00:19.6]} 56... Be6
{[%clk 0:00:07.4]} 57. Kh4 {[%clk 0:00:17]} 57... Be7+ {[%clk 0:00:07.5]} 58.
Kh3 {[%clk 0:00:16]} 58... Rb1 {[%clk 0:00:04.5]} 59. Ra5+ {[%clk 0:00:15.5]}
59... Kg6 {[%clk 0:00:04.5]} 60. Ra6 {[%clk 0:00:15.5]} 60... Kf7 {[%clk
0:00:05.2]} 61. Ra4 {[%clk 0:00:13.1]} 61... Rb4 {[%clk 0:00:02]} 62. Kg2 {[%clk
0:00:14]} 62... Rxa4 {[%clk 0:00:02.4]} 63. Ne5+ {[%clk 0:00:13.6]} 63... Ke8
{[%clk 0:00:03.1]} 64. Nc6 {[%clk 0:00:12.7]} 64... Bd5+ {[%clk 0:00:02.5]} 65.
Kh3 {[%clk 0:00:12.7]} 65... Bxc6 {[%clk 0:00:03.4]} 66. g4 {[%clk 0:00:13.2]}
66... Bd7 {[%clk 0:00:04.3]} 67. Kg3 {[%clk 0:00:12.5]} 67... Rxg4+ {[%clk
0:00:05.2]} 68. Kf3 {[%clk 0:00:11.9]} 68... Kf7 {[%clk 0:00:06.1]} 69. Kf2
{[%clk 0:00:11.1]} 69... Kf6 {[%clk 0:00:07]} 70. Kf1 {[%clk 0:00:11.9]} 70...
Kf5 {[%clk 0:00:07.9]} 0-1